bitfinex-derivatives/quotes_ETHF0:USTF0_20250320
["timestamp","ask_amount","ask_price","bid_price","bid_amount"]
[1742480776409,0.99674,2007.3,2007.2,4.66574]
[1742480776811,0.99674,2007.3,2007.2,45.46574]
[1742480777118,0.99679,2007.2,2007.1,0.00746733]
[1742480777313,2.30839,2007.2,2007.1,0.00746733]
[1742480777815,1.3116,2007.2,2007.1,1.00430733]
[1742480778020,0.9967,2007.4,2007.3,0.99672]
[1742480778218,1.3116,2007.4,2007.3,4.20454]
[1742480779315,0.00746733,2007.5,2007.4,0.99669]
[1742480779517,0.00746733,2007.5,2007.4,2.39259]
[1742480779707,0.00746733,2007.5,2007.4,3.58889]
[1742480780615,0.99655,2007.7,2007.4,2.5922]
[1742480780817,0.99659,2007.6,2007.5,3.658]
[1742480781119,0.99659,2007.6,2007.3,46.036]
[1742480781120,0.99669,2007.4,2007.3,46.036]
[1742480781315,0.99669,2007.4,2007.3,49.2438]
[1742480781512,0.99671,2007.4,2007.3,0.99672]
[1742480781711,2.38429,2007.4,2007.3,4.20452]
[1742480781913,1.3876,2007.4,2007.3,4.20452]
[1742480782116,2.38429,2007.4,2007.3,3.2078]
[1742480782315,1.3876,2007.4,2007.3,4.20454]
[1742480783224,2.38429,2007.4,2007.3,4.20454]
[1742480783523,0.99674,2007.3,2007.2,4.65476]
[1742480783722,2.42284,2007.3,2007.2,4.65476]
[1742480783920,2.42284,2007.3,2007.2,3.658]
[1742480784215,0.99679,2007.2,2007.1,0.00746733]
[1742480784410,2.42289,2007.2,2007.1,0.00746733]
[1742480786612,9.62591,2007.2,2006.8,0.99694]
[1742480786816,0.99697,2006.9,2006.8,0.99694]
[1742480787030,0.99697,2006.9,2006.8,2.33694]
[1742480787322,0.99699,2006.8,2006.7,4.20479]
[1742480787526,2.37679,2006.8,2006.7,4.20479]
[1742480788926,1.3798,2006.8,2006.7,4.20479]
[1742480789119,2.37679,2006.8,2006.7,4.20479]
[1742480790021,2.37679,2006.8,2006.7,3.2078]
[1742480790226,1.3798,2006.8,2006.7,4.20483]
[1742480790427,1.1564,2007.0,2006.9,0.99694]
[1742480790725,0.99688,2007.1,2007.0,0.99689]
[1742480790726,1.3088,2007.1,2007.0,0.99689]
[1742480790915,1.3088,2007.1,2007.0,5.63789]
[1742480791523,2.30564,2007.1,2007.0,5.63789]
[1742480791725,3.80091,2007.1,2006.7,3.2078]
[1742480791926,0.99694,2006.9,2006.8,3.644]
[1742480792118,0.99699,2006.8,2006.7,3.2078]
[1742480792324,2.33109,2006.8,2006.7,3.2078]
[1742480793326,1.3341,2006.8,2006.7,4.20483]
[1742480793821,0.99693,2007.0,2006.9,0.99693]
[1742480794022,2.33098,2007.1,2006.8,1.364]
[1742480794227,1.3341,2007.1,2007.0,4.20469]
[1742480794931,2.33094,2007.1,2007.0,3.2078]
[1742480795231,2.33094,2007.1,2007.0,4.20469]
[1742480795438,1.3341,2007.1,2007.0,4.87538754]
[1742480795824,2.08704,2007.3,2007.2,0.99679]
[1742480796130,1.0903,2007.3,2007.2,0.99679]
[1742480796524,1.0903,2007.3,2007.2,2.30669]
[1742480796829,2.08704,2007.3,2007.2,2.30669]
[1742480797130,2.08704,2007.3,2007.2,2.97781456]
[1742480797327,1.3579,2007.4,2007.3,0.99674]
[1742480797629,0.00746733,2007.6,2007.5,0.99664]
[1742480797933,0.00746733,2007.6,2007.5,5.30876456]
[1742480798632,0.00746733,2007.6,2007.5,6.71276456]
[1742480798832,0.00746733,2007.6,2007.5,6.71316366]
[1742480799133,0.00746733,2007.6,2007.5,6.71316208]
[1742480799430,1.4218,2007.9,2007.8,0.99649]
[1742480799630,1.4218,2007.9,2007.8,8.50981208]
[1742480799834,2.41824,2007.9,2007.8,8.50981208]
[1742480800025,1.4218,2007.9,2007.8,8.50981208]
[1742480800828,1.4218,2007.9,2007.8,8.50987102]
[1742480801131,2.41824,2007.9,2007.8,7.51338102]
[1742480801327,0.99654,2007.7,2007.6,0.00746733]
[1742480802630,0.99652,2007.8,2007.6,0.00746733]
[1742480802936,0.99654,2007.7,2007.6,0.00746733]
[1742480803135,0.99654,2007.7,2007.6,0.67954538]
[1742480803526,4.78639,2008.0,2007.6,0.67954538]
[1742480803527,2.2954,2008.0,2007.6,0.67954538]
[1742480803727,0.99644,2007.9,2007.8,0.99646]
[1742480804036,2.2954,2008.0,2007.8,0.67207805]
[1742480804235,0.00746733,2008.1,2007.9,3.622]
[1742480804430,1.00382733,2008.1,2007.9,5.70232193]
[1742480804632,2.31746733,2008.1,2008.0,0.99639]
[1742480805035,0.00746733,2008.1,2008.0,0.99639]
[1742480805230,0.00746733,2008.1,2008.0,2.40499]
[1742480805634,0.00746733,2008.1,2008.0,3.07649441]
[1742480806028,0.00746733,2008.1,2008.0,2.40499]
[1742480806338,0.00746733,2008.1,2008.0,3.07645144]
[1742480806545,0.99602,2008.8,2008.2,2.49073]
[1742480806736,0.99607,2008.7,2008.5,0.99613]
[1742480807336,0.99609,2008.6,2008.5,1.4086]
[1742480807542,2.0809,2008.8,2008.4,3.2078]
[1742480807746,0.99609,2008.6,2008.5,1.2932]
[1742480807939,0.99609,2008.6,2008.4,4.20396]
[1742480808349,2.08836733,2008.8,2008.4,4.20396]
[1742480808541,3.08438733,2008.8,2008.6,0.99605]
[1742480808739,2.08836733,2008.8,2008.7,0.99604]
[1742480809449,0.00746733,2008.8,2008.7,4.20384]
[1742480809646,0.99579,2009.2,2009.1,0.99584]
[1742480810045,0.99579,2009.3,2009.2,0.99579]
[1742480810351,0.99577,2009.3,2009.1,1.2932]
[1742480810551,0.99577,2009.3,2009.2,0.99578]
[1742480810552,0.99575,2009.3,2009.2,0.99578]
[1742480810749,3.21526733,2009.4,2009.3,0.99574]
[1742480810953,3.21526733,2009.4,2009.3,4.62174]
[1742480811150,3.21526733,2009.4,2009.1,1.2932]
[1742480811347,0.99579,2009.2,2009.1,4.62082]
[1742480811541,3.21526733,2009.4,2009.2,0.99579]
[1742480811542,0.99578,2009.3,2009.2,0.99579]
[1742480812142,0.00746733,2009.4,2009.3,0.99574]
[1742480813154,0.00746733,2009.4,2009.3,4.20354]
[1742480813647,0.9949,2009.7,2009.6,0.9956]
[1742480813852,2.0792,2010.0,2009.6,6.8338]
[1742480814046,0.99554,2009.8,2009.7,1.3049]
[1742480814242,0.99555,2009.7,2009.6,3.2078]
[1742480814447,0.99555,2009.7,2009.2,47.0738]
[1742480814448,0.9957,2009.4,2009.3,5.92463]
[1742480814849,0.9957,2009.4,2009.3,4.9289]
[1742480815158,0.99574,2009.3,2009.2,47.02176]
[1742480815454,0.99571,2009.4,2009.3,0.99572]
[1742480815756,0.99574,2009.3,2009.2,47.02176]
[1742480815957,6.1149,2009.7,2009.2,46.026]
[1742480816147,0.99574,2009.3,2009.2,47.02179]
[1742480816347,0.99574,2009.3,2009.2,46.026]
[1742480816852,0.99574,2009.3,2009.2,47.02176]
[1742480817053,3.06427,2009.5,2009.4,0.9957]
[1742480817243,2.0686,2009.5,2009.4,0.9957]
[1742480817447,2.0686,2009.5,2009.4,4.6177]
[1742480817648,1.0095,2009.5,2009.4,7.8255]
[1742480817855,1.0095,2009.8,2009.4,6.8298]
[1742480818054,1.0095,2009.8,2009.4,7.82547]
[1742480818244,0.99574,2009.3,2009.2,46.026]
[1742480818853,0.99584,2009.1,2009.0,0.00746733]
[1742480819056,0.99584,2009.1,2009.0,1.00335733]
[1742480819262,2.136,2009.2,2009.1,0.99584]
[1742480819555,0.99584,2009.1,2009.0,0.00746733]
[1742480821849,4.61484,2009.1,2009.0,0.00746733]
[1742480822256,2.136,2009.2,2009.0,0.00746733]
[1742480822453,0.99572,2009.4,2009.3,0.99574]
[1742480823449,0.99579,2009.2,2009.1,9.26579]
[1742480823653,1.3507,2009.3,2009.1,8.27]
[1742480823856,1.3507,2009.3,2009.2,0.99579]
[1742480824063,1.3507,2009.3,2009.2,2.41399]
[1742480825259,2.34644,2009.3,2009.2,2.41399]
[1742480825556,1.3507,2009.3,2009.2,2.41399]
[1742480825759,2.34644,2009.3,2009.2,2.41399]
[1742480826356,1.3507,2009.3,2009.2,2.41399]
[1742480826555,1.3507,2009.3,2009.0,1.00331733]
[1742480826751,2.48962,2009.1,2008.5,3.2078]
[1742480826954,5.0319,2009.0,2008.5,3.2078]
[1742480827158,0.99601,2008.8,2008.7,0.99601]
[1742480827359,0.99598,2008.9,2008.8,0.99597]
[1742480827662,1.3899,2008.9,2008.8,7.84577]
[1742480828061,1.00334733,2009.1,2009.0,0.99589]
[1742480828360,0.99589,2009.0,2008.9,2.34441]
[1742480828960,0.99594,2008.9,2008.8,6.8498]
[1742480829155,0.99594,2008.9,2008.8,7.84576]
[1742480829356,0.99594,2008.9,2008.8,3.2078]
[1742480829558,0.99604,2008.7,2008.6,46.01446733]
[1742480830263,3.44674,2008.7,2008.6,0.00746733]
[1742480830455,0.99624,2008.3,2008.2,1.4152]
[1742480830651,0.99629,2008.2,2008.1,52.8578]
[1742480830856,2.37479,2008.2,2008.1,52.8578]
[1742480831050,2.37479,2008.2,2008.1,46.007]
[1742480831260,0.99639,2008.0,2007.9,4.04227446]
[1742480831461,0.99639,2008.0,2007.9,4.63644]
[1742480831665,0.99639,2008.0,2007.9,3.64]
[1742480831861,2.33999,2008.0,2007.9,3.64]
[1742480832266,0.99644,2007.9,2007.8,3.2078]
[1742480832459,2.34004,2007.9,2007.8,3.2078]
[1742480833058,2.34004,2007.9,2007.7,3.64946733]
[1742480833059,2.34004,2007.9,2007.7,0.00746733]
[1742480833265,2.04299,2007.8,2007.7,0.00746733]
[1742480833466,3.38659,2007.8,2007.7,0.00746733]
[1742480834259,2.49153,2007.6,2007.2,3.2078]
[1742480834458,2.4358,2007.5,2007.2,6.8478]
[1742480834667,3.43244,2007.5,2007.4,0.99669]
[1742480834856,2.4358,2007.5,2007.4,0.99669]
[1742480835063,1.3436,2007.5,2007.4,0.99669]
[1742480835360,0.00746733,2008.1,2008.0,0.99639]
[1742480835855,0.00746733,2008.1,2008.0,43.13719]
[1742480837463,1.36936733,2008.1,2008.0,41.79639]
[1742480837762,2.36570733,2008.1,2008.0,41.79639]
[1742480837957,0.99639,2008.0,2007.9,6.8498]
[1742480838153,2.42789,2008.0,2007.9,3.2078]
[1742480838361,3.49639,2008.0,2007.9,4.20424]
[1742480838560,0.00746733,2008.1,2008.0,0.99639]
[1742480838765,0.00746733,2008.1,2008.0,2.36549]
[1742480838961,1.43896733,2008.1,2008.0,2.36549]
[1742480839356,0.00746733,2008.1,2008.0,2.36549]
[1742480839667,0.00746733,2008.1,2008.0,5.99849]
[1742480839969,1.43896733,2008.1,2008.0,46.79849]
[1742480840466,0.00746733,2008.1,2008.0,46.79849]
[1742480840670,0.00746733,2008.1,2008.0,47.88379]
[1742480840856,2.1398,2008.6,2008.0,47.88379]
[1742480840857,2.06463,2008.6,2008.1,2.49084]
[1742480841056,2.37437,2008.5,2008.4,0.99619]
[1742480841264,0.99619,2008.4,2008.3,7.83201]
[1742480841469,2.37439,2008.4,2008.3,7.83201]
[1742480841767,2.37439,2008.4,2008.3,6.8358]
[1742480842364,2.37439,2008.4,2008.3,7.83204]
[1742480842563,2.37439,2008.4,2008.3,6.8358]
[1742480843163,2.37439,2008.4,2008.3,3.2078]
[1742480843567,0.99629,2008.2,2008.1,0.00746733]
[1742480844368,2.29309,2008.2,2008.1,0.00746733]
[1742480844766,0.99659,2007.6,2007.5,7.8214]
[1742480845265,0.99659,2007.6,2007.5,6.8248]
[1742480845662,0.99659,2007.6,2007.5,3.2078]
[1742480845868,1.2968,2007.7,2007.6,0.99659]
[1742480846368,2.29334,2007.7,2007.6,0.99659]
[1742480846671,1.2968,2007.7,2007.6,0.99659]
[1742480846970,2.29334,2007.7,2007.6,0.99659]
[1742480847567,1.2968,2007.7,2007.6,0.99659]
[1742480847771,0.99659,2007.6,2007.5,3.2078]
[1742480848068,1.2968,2007.7,2007.6,0.99659]
[1742480848267,1.2968,2007.7,2007.6,2.33519]
[1742480848565,2.29334,2007.7,2007.6,2.33519]
[1742480848769,2.29334,2007.7,2007.6,1.3386]
[1742480849971,0.99659,2007.6,2007.5,6.8288]
[1742480850277,0.99651,2007.8,2007.5,6.8288]
[1742480850474,1.406,2007.8,2007.7,0.99652]
[1742480850677,2.40249,2007.8,2007.7,0.99652]
[1742480850882,1.406,2007.8,2007.7,0.99652]
[1742480851169,0.99628,2008.3,2008.2,0.99627]
[1742480851374,0.99629,2008.2,2008.1,4.20411]
[1742480851876,1.406,2008.3,2008.2,0.99629]
[1742480852176,1.406,2008.3,2008.2,2.31719]
[1742480852777,2.40224,2008.3,2008.2,2.31719]
[1742480852976,1.127,2008.5,2008.4,0.99619]
[1742480853174,0.99621,2008.4,2008.3,0.99619]
[1742480854075,1.127,2008.5,2008.2,2.31715]
[1742480854076,0.99624,2008.3,2008.2,2.31715]
[1742480854269,2.29944,2008.3,2008.2,2.31715]
[1742480854470,2.29944,2008.3,2008.2,1.3209]
[1742480855076,1.3032,2008.3,2008.2,0.99629]
[1742480855273,1.3032,2008.3,2008.2,2.31389]
[1742480855579,2.12317,2008.5,2008.4,0.99619]
[1742480855769,2.12317,2008.5,2008.3,4.59821]
[1742480855770,0.99619,2008.4,2008.3,4.59821]
[1742480855974,0.99629,2008.2,2008.1,4.20412]
[1742480857271,0.99629,2008.2,2008.1,3.2078]
[1742480858074,2.40049,2008.2,2008.1,3.2078]
[1742480858274,2.40049,2008.2,2008.1,4.20414]
[1742480858476,2.40049,2008.2,2008.1,3.2078]
[1742480858676,2.40049,2008.2,2008.1,4.20414]
[1742480858872,1.4042,2008.2,2008.1,4.20414]
[1742480859178,2.40049,2008.2,2008.1,3.2078]
[1742480859377,0.99646,2007.9,2007.8,3.2078]
[1742480859678,0.99644,2007.9,2007.8,0.67304637]
[1742480859979,0.99659,2007.6,2007.5,4.20442]
[1742480860175,0.99659,2007.6,2007.4,1.3333]
[1742480860382,0.99659,2007.6,2007.5,0.67356895]
[1742480860583,2.1785,2007.8,2007.5,0.67356895]
[1742480860584,0.99658,2007.7,2007.6,0.99658]
[1742480860777,0.99664,2007.5,2007.4,2.32996]
[1742480860972,0.99664,2007.5,2007.4,2.00686756]
[1742480861276,0.99664,2007.5,2007.4,0.67356756]
[1742480861977,0.99669,2007.4,2007.3,0.00746733]
[1742480862476,0.99669,2007.4,2007.3,1.00420733]
[1742480862677,0.99669,2007.4,2007.3,1.36796733]
[1742480862875,0.99669,2007.4,2007.3,0.00746733]
[1742480866078,0.99689,2007.0,2006.9,3.593]
[1742480866375,0.99689,2007.0,2006.7,87.9343]
[1742480866376,0.99699,2006.8,2006.7,46.034]
[1742480866776,1.0724,2006.9,2006.7,46.40475626]
[1742480866982,9.28873,2007.3,2006.9,0.9969]
[1742480867180,3.2078,2007.3,2007.0,1.3501]
[1742480867385,0.99672,2007.4,2007.3,0.99673]
[1742480867683,0.99674,2007.3,2007.2,2.34685]
[1742480867873,0.99674,2007.3,2007.2,1.3501]
[1742480868075,0.99674,2007.3,2007.2,43.14689]
[1742480868873,0.99672,2007.4,2007.3,0.99672]
[1742480869781,0.99669,2007.4,2007.3,0.99674]
[1742480869976,1.89377,2007.5,2007.4,0.99669]
[1742480870386,0.8971,2007.5,2007.4,0.99669]
[1742480870570,0.00746733,2007.6,2007.5,0.99664]
[1742480870774,0.00746733,2007.6,2007.5,2.38654]
[1742480871589,0.00746733,2007.6,2007.5,3.05842606]
[1742480872083,1.00405733,2007.6,2007.5,3.05842606]
[1742480872284,0.00746733,2007.6,2007.5,2.38654]
[1742480872787,1.00405733,2007.6,2007.5,2.38654]
[1742480872979,1.00405733,2007.6,2007.0,2.49212]
[1742480872980,1.32806733,2007.6,2007.0,3.2078]
[1742480873285,1.32806733,2007.6,2007.1,5.62193152]
[1742480873472,0.99675,2007.3,2007.2,3.02968152]
[1742480874072,0.99679,2007.2,2007.1,4.58581]
[1742480874277,2.31739,2007.2,2007.1,5.25838698]
[1742480874484,1.3206,2007.2,2007.1,5.25838698]
[1742480874681,1.3206,2007.2,2007.1,5.25844939]
[1742480875088,1.3206,2007.2,2007.0,1.3607]
[1742480875290,0.99684,2007.1,2007.0,3.589]
[1742480875589,0.99684,2007.1,2007.0,0.99689]
[1742480875789,0.99689,2007.0,2006.9,4.58591]
[1742480875980,1.3576,2007.0,2006.9,5.25871549]
[1742480876382,1.3576,2007.0,2006.9,4.58591]
[1742480876582,1.3576,2007.0,2006.9,5.25856611]
[1742480877087,0.99677,2007.3,2007.2,0.99679]
[1742480877288,1.3576,2007.3,2007.2,0.99679]
[1742480877485,2.35434,2007.3,2007.2,0.99679]
[1742480877685,0.99679,2007.2,2007.1,0.99679]
[1742480877993,0.99679,2007.2,2006.9,6.08128]
[1742480877994,0.99688,2007.1,2007.0,0.99687]
[1742480878386,0.99689,2007.0,2006.9,4.58691]
[1742480878581,2.40159,2007.0,2006.9,6.01291]
[1742480879286,2.40159,2007.0,2006.9,4.58691]
[1742480879593,0.99694,2006.9,2006.8,50.02075]
[1742480879786,0.99694,2006.9,2006.8,46.43075]
[1742480879986,0.99694,2006.9,2006.8,3.59]
[1742480880186,0.99694,2006.9,2006.8,4.58699]
[1742480880383,1.4047,2007.0,2006.9,0.99694]
[1742480880695,0.99681,2007.2,2007.1,0.99684]
[1742480880883,2.33378,2007.3,2007.2,0.99679]
[1742480881078,0.99683,2007.2,2007.1,0.99682]
[1742480881293,1.337,2007.2,2007.1,0.99682]
[1742480881491,2.33379,2007.2,2007.1,0.99682]
[1742480881789,0.99686,2007.1,2007.0,0.99685]
[1742480881991,0.99689,2007.0,2006.9,1.426]
[1742480882189,0.99694,2006.9,2006.8,4.58697]
[1742480882392,0.99699,2006.8,2006.7,0.37075626]
[1742480882688,0.99699,2006.8,2006.7,2.29241]
[1742480882890,0.99703,2006.7,2006.6,4.00321048]
[1742480883084,0.99703,2006.7,2006.6,0.00746733]
[1742480883287,0.99703,2006.7,2006.0,0.4981]
[1742480883288,6.154,2006.7,2006.0,0.4981]
[1742480883487,0.99732,2006.2,2006.1,0.4981]
[1742480884188,4.20512,2006.2,2006.1,0.4981]
[1742480884389,5.53012,2006.2,2006.1,0.4981]
[1742480884590,4.5328,2006.2,2006.0,0.4981]
[1742480884890,4.5328,2006.2,2006.1,2.43699099]
[1742480885195,4.5328,2006.2,2006.1,5.25989395]
[1742480885393,1.325,2006.2,2006.1,5.25989395]
[1742480885694,0.00746733,2006.4,2006.2,0.99725]
[1742480885993,1.325,2006.3,2006.2,2.29445]
[1742480886187,0.00746733,2006.4,2006.3,0.99723]
[1742480886392,0.00746733,2006.4,2006.3,3.33114821]
[1742480886795,0.00746733,2006.4,2006.3,44.13042359]
[1742480887396,1.325,2006.7,2006.6,0.99708]
[1742480887590,1.325,2006.7,2006.6,5.87164746]
[1742480887783,1.325,2006.7,2006.6,5.87152662]
[1742480887988,1.325,2006.7,2006.6,8.33260571]
[1742480888189,1.325,2006.7,2006.6,10.07472999]
[1742480888786,0.00746733,2006.9,2006.8,0.99699]
[1742480889001,0.00746733,2006.9,2006.8,2.21943662]
[1742480889002,1.37766733,2006.9,2006.8,2.21943662]
[1742480889294,3.2078,2007.5,2007.2,0.99678]
[1742480889500,0.9022,2007.4,2007.3,2.21916662]
[1742480889797,2.2724,2007.4,2007.3,3.96141311]
[1742480890185,51.0354,2008.7,2007.3,50.13050124]
[1742480890186,5.69857,2008.2,2007.3,50.13050124]
[1742480890391,4.69626,2008.1,2007.6,4.20436]
[1742480890590,0.99649,2007.8,2007.7,2.96446159]
[1742480891295,0.99649,2007.8,2007.3,47.05172]
[1742480891296,0.99669,2007.4,2007.3,46.055]
[1742480891600,0.99674,2007.3,2007.2,3.2078]
[1742480891899,2.30144,2007.3,2007.2,3.90251378]
[1742480892596,2.30144,2007.3,2007.2,7.55451378]
[1742480892792,2.30144,2007.3,2007.2,3.90251378]
[1742480893189,2.30144,2007.3,2007.2,4.89930378]
[1742480893390,2.30144,2007.3,2007.2,3.9024609]
[1742480893702,2.30144,2007.3,2007.2,0.6946609]
[1742480893899,0.99679,2007.2,2007.1,0.00746733]
[1742480894099,3.32139,2007.2,2007.1,0.70227284]
[1742480894399,3.32139,2007.2,2007.1,0.00746733]
[1742480895102,2.3246,2007.2,2007.1,4.90684759]
[1742480895301,2.3246,2007.2,2007.1,3.9099311]
[1742480895599,2.3246,2007.2,2007.1,4.9067711]
[1742480895800,3.32139,2007.2,2007.1,4.9067711]
[1742480896699,3.32139,2007.2,2007.1,3.9099311]
[1742480896889,3.32139,2007.2,2007.1,3.21526733]
[1742480898002,3.32139,2007.2,2007.1,0.00746733]
[1742480898594,3.32139,2007.2,2006.8,49.2628]
[1742480898595,0.99694,2006.9,2006.8,49.2628]
[1742480898791,0.99694,2006.9,2006.8,3.2078]
[1742480898996,0.99708,2006.6,2006.5,3.2078]
[1742480899197,0.99707,2006.7,2006.5,3.90284406]
[1742480899396,0.997,2006.8,2006.7,0.99702]
[1742480899596,0.997,2006.8,2006.7,0.69504406]
[1742480899903,0.997,2006.8,2006.7,2.12564406]
[1742480901000,0.99698,2006.9,2006.7,3.12215186]
[1742480901197,0.99698,2006.9,2006.8,0.69454186]
[1742480901604,0.99703,2006.7,2006.6,3.644]
[1742480901806,0.99703,2006.7,2006.6,6.44743936]
[1742480901995,0.99703,2006.7,2006.6,6.7544336]
[1742480902196,0.99701,2006.8,2006.7,0.99703]
[1742480902396,0.99701,2006.8,2006.7,1.6917836]
[1742480902598,0.99701,2006.8,2006.7,3.1103836]
[1742480902804,0.99701,2006.8,2006.7,3.46770219]
[1742480903004,0.00746733,2007.0,2006.7,3.16561866]
[1742480903207,0.99699,2006.8,2006.7,3.46769219]
[1742480903408,0.99699,2006.8,2006.7,1.21774121]
[1742480903603,0.99699,2006.8,2006.7,0.52264836]
[1742480904000,0.99699,2006.8,2006.7,2.23337605]
[1742480904218,0.99699,2006.8,2006.7,2.92886997]
[1742480904719,0.99699,2006.8,2006.7,2.23337605]
[1742480905517,0.99699,2006.8,2006.7,2.92885382]
[1742480907022,0.99699,2006.8,2006.7,2.92861555]
[1742480907524,0.99699,2006.8,2006.7,3.9256395]
[1742480908218,0.99699,2006.8,2006.7,2.9286095]
[1742480908519,0.99699,2006.8,2006.7,2.23337605]
[1742480908720,0.99699,2006.8,2006.7,2.92871079]
[1742480908918,0.99699,2006.8,2006.7,3.92574079]
[1742480909823,0.99696,2006.9,2006.8,0.99694]
[1742480910015,0.99694,2006.9,2006.8,3.5279331]
[1742480910314,0.99694,2006.9,2006.8,5.23866079]
[1742480910520,0.99694,2006.9,2006.8,5.23845146]
[1742480911122,0.99694,2006.9,2006.8,2.92850146]
[1742480911320,0.99694,2006.9,2006.8,2.23338945]
[1742480912015,0.99694,2006.9,2006.8,2.92884635]
[1742480912413,0.99694,2006.9,2006.8,2.92947254]
[1742480912717,0.99694,2006.9,2006.8,2.2338075]
[1742480912924,0.99694,2006.9,2006.8,2.92945441]
[1742480913321,2.41098733,2007.0,2006.8,6.13725441]
[1742480913517,2.41098733,2007.0,2006.9,1.21872672]
[1742480913918,2.41098733,2007.0,2006.9,0.52307981]
[1742480914323,2.41098733,2007.0,2006.8,3.2078]
[1742480914324,0.99694,2006.9,2006.8,3.2078]
[1742480914524,2.39254,2006.9,2006.8,4.42738225]
[1742480914926,2.39254,2006.9,2006.8,6.14021153]
[1742480915323,2.39254,2006.9,2006.8,5.44406822]
[1742480916123,2.39254,2006.9,2006.8,6.14049662]
[1742480916326,2.39254,2006.9,2006.8,6.14072919]
[1742480916826,2.39254,2006.9,2006.8,5.44429051]
[1742480917122,5.60034,2006.9,2006.8,2.23649051]
[1742480917718,5.60034,2006.9,2006.8,1.18244172]
[1742480918227,5.60034,2006.9,2006.8,1.18242969]
[1742480918629,0.99718,2006.4,2006.3,3.2078]
[1742480918821,0.99718,2006.4,2006.3,3.90439765]
[1742480919524,2.39668,2006.4,2006.3,3.90439765]
[1742480919722,2.39668,2006.4,2006.3,4.95092132]
[1742480920323,2.39668,2006.4,2006.3,1.74312132]
[1742480920625,2.39668,2006.4,2006.3,1.04652367]
[1742480921027,0.99728,2006.2,2006.1,0.00746733]
[1742480921222,0.99728,2006.2,2006.1,0.70392406]
[1742480921722,0.99728,2006.2,2006.1,1.75064903]
[1742480922227,0.99728,2006.2,2006.1,1.0541923]
[1742480922427,2.39548,2006.2,2006.1,1.0541923]
[1742480923224,2.39548,2006.2,2006.0,3.2078]
[1742480923225,0.99733,2006.1,2006.0,3.2078]
[1742480923521,0.99743,2005.9,2005.8,46.06]
[1742480923826,0.99748,2005.8,2005.7,0.8735]
[1742480924028,2.39558,2005.8,2005.7,1.5697582]
[1742480924424,2.39558,2005.8,2005.7,0.6962582]
[1742480925033,2.39558,2005.8,2005.7,1.74214405]
[1742480925233,2.39558,2005.8,2005.7,1.04588585]
[1742480925930,0.99753,2005.7,2005.6,3.2078]
[1742480926124,2.39563,2005.7,2005.6,3.2078]
[1742480928732,2.39563,2005.7,2005.6,4.94674401]
[1742480929121,2.39563,2005.7,2005.6,4.25198839]
[1742480930233,2.39563,2005.7,2005.6,7.84498839]
[1742480930433,2.39563,2005.7,2005.6,4.25198839]
[1742480930730,2.39563,2005.7,2005.6,7.84498839]
[1742480931129,2.39563,2005.7,2005.6,7.45271168]
[1742480931529,2.39563,2005.7,2005.6,3.85971168]
[1742480932125,2.39563,2005.7,2005.6,0.64103057]
[1742480932329,0.99758,2005.6,2005.5,0.00497821]
[1742480932532,2.34278,2005.6,2005.5,0.00497821]
[1742480933523,2.34278,2005.6,2005.5,4.96387821]
[1742480934633,3.2078,2005.7,2005.5,5.65678065]
[1742480934834,4.20538,2005.7,2005.6,0.99758]
[1742480935030,4.20538,2005.7,2005.6,1.84838]
[1742480935331,0.49868,2005.7,2005.6,0.8508]
[1742480936237,1.34498,2005.8,2005.6,0.8508]
[1742480936435,2.34246,2005.8,2005.7,1.3984]
[1742480937737,0.99753,2005.7,2005.6,0.8508]
[1742480938936,0.99753,2005.7,2005.6,1.84838]
[1742480939143,0.99753,2005.7,2005.6,2.54171743]
[1742480939438,0.99753,2005.7,2005.6,2.54165743]
[1742480939639,0.99753,2005.7,2005.6,1.54413743]
[1742480939834,6.31326,2005.9,2005.6,1.54413743]
[1742480939835,0.99752,2005.8,2005.7,0.99748]
[1742480940031,0.99752,2005.8,2005.7,6.58378044]
[1742480940335,0.99752,2005.8,2005.7,6.58381623]
[1742480940541,0.99752,2005.8,2005.7,7.61785696]
[1742480941133,1.00488733,2006.0,2005.9,0.99743]
[1742480941641,1.00488733,2006.0,2005.9,1.69053951]
[1742480941833,1.00488733,2006.0,2005.9,2.72458024]
[1742480942035,0.00746733,2006.0,2005.9,2.72458024]
[1742480942236,1.00484733,2006.0,2005.9,4.11638024]
[1742480942436,0.00746733,2006.0,2005.9,1.72715024]
[1742480942635,1.00484733,2006.0,2005.9,6.31760458]
[1742480942837,1.00484733,2006.0,2005.9,6.71197458]
[1742480943636,0.00746733,2006.0,2005.9,7.01627073]
[1742480943936,0.00746733,2006.0,2005.9,8.8184449]
[1742480944146,0.99726,2006.3,2006.2,0.99724]
[1742480944341,2.30817,2006.5,2006.4,0.99718]
[1742480944548,4.20493,2006.6,2006.5,0.99713]
[1742480944847,2.30213,2006.6,2006.5,5.2831261]
[1742480945047,0.99706,2006.7,2006.6,0.99708]
[1742480945239,0.99706,2006.7,2006.6,3.1215761]
[1742480945642,0.99706,2006.7,2006.6,2.37307483]
[1742480945855,2.30206,2006.7,2006.6,1.68007873]
[1742480946142,2.30206,2006.7,2006.6,0.646038]
[1742480946648,5.50986,2006.7,2006.6,0.646038]
[1742480947048,5.50986,2006.7,2006.6,4.239038]
[1742480947348,5.50986,2006.7,2006.6,3.593]
[1742480948048,0.99718,2006.4,2006.3,1.4315]
[1742480948244,0.99723,2006.3,2006.2,0.8264]
[1742480948546,0.99728,2006.2,2006.1,46.077]
[1742480948750,1.84688,2006.2,2006.1,46.077]
[1742480948947,0.99748,2005.8,2005.7,46.9034]
[1742480949143,0.99748,2005.8,2005.7,50.36412855]
[1742480949542,2.40048,2005.8,2005.7,50.36412855]
[1742480949747,2.40048,2005.8,2005.7,48.45411736]
[1742480950045,2.40048,2005.8,2005.7,45.71300339]